fUSD/lending_fUSD_20241219
["ID","MTS","AMOUNT","RATE_DAILY","PERIOD"]
[345985142,1734601840904,-500.0,0.00021917,4]
[345985143,1734601840914,-500.0,0.00021917,4]
[345985144,1734601840925,-21142.57,0.00022,2]
[345985145,1734601840935,-16267.4562415,0.00022,2]
[345985146,1734601840945,-297.4,0.00022,7]
[345985147,1734601840955,-297.4,0.00022,7]
[345985148,1734601840965,-957.8346,0.00022,2]
[345985149,1734601840977,-1098.66986177,0.0002205,2]
[345985150,1734601840988,-1126.37274921,0.0002205,2]
[345985151,1734601841000,-3804.47014682,0.00022056,2]
[345985152,1734601841010,-1500.0,0.00022076,2]
[345985153,1734601841022,-297.4,0.00022145,7]
[345985154,1734601841033,-297.4,0.00022145,7]
[345985155,1734601841043,-297.4,0.00022145,7]
[345985156,1734601841054,-297.4,0.00022145,7]
[345985157,1734601841064,-175.94883959,0.00022145,4]
[345985158,1734601841075,-500.0,0.00022145,2]
[345985159,1734601841087,-500.0,0.00022145,2]
[345985160,1734601841097,-457.91090157,0.00022145,4]
[345985161,1734601841108,-1264.0,0.00022145,2]
[345985162,1734601841119,-2008.0,0.00022145,2]
[345985163,1734601841130,-150.428,0.00022145,2]
[345985164,1734601841140,-637.185,0.00022145,2]
[345985165,1734601841152,-564.0,0.00022145,2]
[345985166,1734601841163,-1897.0,0.00022145,2]
[345985167,1734601841173,-3768.0,0.00022145,2]
[345985168,1734601841183,-819.0,0.00022145,2]
[345985169,1734601841193,-929.0,0.00022145,2]
[345985170,1734601841203,-1255.0,0.00022145,2]
[345985171,1734601841213,-3634.0,0.00022145,2]
[345985172,1734601841224,-676.942,0.00022145,2]
[345985173,1734601841235,-1169.0,0.00022145,2]
[345985174,1734601841250,-150.0,0.00022145,2]
[345985175,1734601841262,-3884.0,0.00022145,2]
[345985176,1734601841273,-13732.0,0.00022145,2]
[345985177,1734601841284,-1099.0,0.00022145,2]
[345985178,1734601841294,-150.0,0.00022145,2]
[345985179,1734601841304,-519.2101584,0.00022173,2]
[345985180,1734601841315,-500.0,0.00022189,4]
[345985181,1734601841325,-500.0,0.00022189,4]
[345985182,1734601841336,-600.0,0.00022189,2]
[345985183,1734601841346,-580.96,0.00022189,2]
[345985184,1734601841356,-500.0,0.00022189,4]
[345985185,1734601841367,-500.0,0.00022189,4]
[345985186,1734601841377,-500.0,0.00022189,4]
[345985187,1734601841387,-500.0,0.00022189,4]
[345985188,1734601841397,-500.0,0.00022189,4]
[345985189,1734601841408,-500.0,0.00022189,4]
[345985190,1734601841421,-500.0,0.00022189,2]
[345985191,1734601841436,-500.0,0.00022189,4]
[345985192,1734601841446,-500.0,0.00022189,4]
[345985193,1734601841457,-500.0,0.00022189,4]
[345985194,1734601841466,-576.81495914,0.00022189,4]
[345985195,1734601841477,-500.0,0.00022189,4]
[345985196,1734601841486,-317.98769101,0.00022189,4]
[345985197,1734601841723,-500.0,0.00022189,4]
[345985198,1734601841739,-500.0,0.00022189,4]
[345985199,1734601841757,-500.0,0.00022189,4]
[345985200,1734601841768,-500.0,0.00022189,4]
[345985201,1734601841777,-500.0,0.00022189,4]
[345985202,1734601841787,-500.0,0.00022189,4]
[345985203,1734601841795,-500.0,0.00022189,4]
[345985204,1734601841804,-500.0,0.00022189,4]
[345985205,1734601841813,-500.0,0.00022189,4]
[345985206,1734601841822,-500.0,0.00022189,4]
[345985207,1734601841831,-500.0,0.00022189,4]
[345985208,1734601841840,-500.0,0.00022189,4]
[345985209,1734601841849,-500.0,0.00022189,4]
[345985210,1734601841859,-683.4,0.00022189,4]
[345985211,1734601841868,-500.0,0.00022189,4]
[345985212,1734601841877,-1242.62,0.00022189,4]
[345985213,1734601841886,-500.0,0.00022189,4]
[345985214,1734601841895,-511.27,0.00022189,4]
[345985215,1734601841905,-1626.52,0.00022189,4]
[345985216,1734601841914,-500.0,0.00022189,4]
[345985217,1734601841923,-500.0,0.00022189,4]
[345985218,1734601841932,-500.0,0.00022189,4]
[345985219,1734601841941,-500.0,0.00022189,4]
[345985220,1734601841951,-500.0,0.00022189,4]
[345985221,1734601841960,-500.0,0.00022189,4]
[345985222,1734601841969,-500.0,0.00022189,4]
[345985223,1734601841979,-551.75,0.00022189,4]
[345985224,1734601841988,-500.0,0.00022189,4]
[345985225,1734601841997,-500.0,0.00022191,4]
[345985226,1734601842007,-500.0,0.00022191,4]
[345985227,1734601842016,-500.0,0.00022191,4]
[345985228,1734601842026,-500.0,0.00022191,4]
[345985229,1734601842036,-500.0,0.00022191,4]
[345985230,1734601842045,-532.29,0.00022191,4]
[345985231,1734601842054,-772.39,0.00022191,4]
[345985232,1734601842063,-500.0,0.00022191,4]
[345985233,1734601842073,-500.0,0.00022191,4]
[345985234,1734601842082,-500.0,0.00022191,4]
[345985235,1734601842091,-500.0,0.00022191,4]
[345985236,1734601842101,-281.84446044,0.00022191,4]
[345985237,1734601842110,-244.29243691,0.00022191,4]
[345985238,1734601842119,-500.0,0.00022191,4]
[345985239,1734601842128,-500.0,0.00022191,4]
[345985240,1734601842137,-500.0,0.00022191,4]
[345985241,1734601842146,-500.0,0.00022191,4]
[345985242,1734601842156,-500.0,0.00022191,4]
[345985243,1734601842165,-500.0,0.00022191,4]
[345985244,1734601842179,-500.0,0.00022191,4]
[345985245,1734601842188,-310.70960865,0.00022233,2]
[345985246,1734601842197,-200.0,0.00022244,2]
[345985247,1734601842206,-291.71,0.00022253,2]
[345985248,1734601842215,-1100.0,0.0002226,2]
[345985249,1734601842224,-500.0,0.0002226,2]
[345985250,1734601842233,-1500.0,0.00022266,2]
[345985251,1734601842242,-41436.43623218,0.0002228,2]
[345985252,1734601842255,-500.0,0.00022299,4]
[345985253,1734601842264,-500.0,0.00022299,4]
[345985254,1734601842273,-859.67,0.00022299,4]
[345985255,1734601842283,-195.49546098,0.00022299,4]
[345985256,1734601842292,-500.0,0.00022299,4]
[345985257,1734601842301,-500.0,0.00022299,4]
[345985258,1734601842310,-500.0,0.00022299,4]
[345985259,1734601842319,-636.77,0.00022299,4]
[345985260,1734601842329,-211.40117116,0.00022299,4]
[345985261,1734601842338,-500.0,0.00022299,4]
[345985262,1734601842347,-500.0,0.00022299,4]
[345985263,1734601842356,-500.0,0.00022299,4]
[345985264,1734601842366,-500.0,0.00022299,4]
[345985265,1734601842375,-1000.0,0.00022299,2]
[345985266,1734601842385,-297.4,0.000223,7]
[345985267,1734601842394,-297.4,0.000223,7]
[345985268,1734601842403,-165.20561588,0.00022302,2]
[345985269,1734601842412,-472.84058429,0.00022321,2]
[345985270,1734601842422,-1000.0,0.00022321,2]
[345985271,1734601842431,-241.91075704,0.00022336,2]
[345985272,1734601842440,-501.54677738,0.00022336,2]
[345985273,1734601842450,-1396.2,0.00022363,2]
[345985274,1734601842459,-1077.01,0.00022366,2]
[345985275,1734601842469,-3804.47014682,0.00022411,2]
[345985276,1734601842478,-508.97139986,0.00022419,2]
[345985277,1734601842487,-505.34,0.00022428,2]
[345985278,1734601842496,-500.0,0.00022463,4]
[345985279,1734601842505,-600.0,0.00022463,2]
[345985280,1734601842515,-580.96,0.00022463,2]
[345985281,1734601842524,-500.0,0.00022463,4]
[345985282,1734601842533,-500.0,0.00022463,4]
[345985283,1734601842542,-500.0,0.00022463,4]
[345985284,1734601842552,-500.0,0.00022463,4]
[345985285,1734601842561,-500.0,0.00022463,4]
[345985286,1734601842570,-510.47744695,0.00022463,2]
[345985287,1734601842579,-500.0,0.00022463,4]
[345985288,1734601842588,-500.0,0.00022463,4]
[345985289,1734601842597,-500.0,0.00022463,4]
[345985290,1734601842606,-500.0,0.00022463,4]
[345985291,1734601842615,-500.0,0.00022463,4]
[345985292,1734601842625,-500.0,0.00022463,4]
[345985293,1734601842635,-500.0,0.00022463,4]
[345985294,1734601842644,-500.0,0.00022463,4]
[345985295,1734601842653,-500.0,0.00022463,4]
[345985296,1734601842662,-500.0,0.00022463,4]
[345985297,1734601842671,-500.0,0.00022463,4]
[345985298,1734601842680,-500.0,0.00022463,4]
[345985299,1734601842689,-500.0,0.00022463,4]
[345985300,1734601842699,-683.4,0.00022463,4]
[345985301,1734601842708,-500.0,0.00022463,4]
[345985302,1734601842717,-1242.62,0.00022463,4]
[345985303,1734601842727,-500.0,0.00022463,4]
[345985304,1734601842736,-511.27,0.00022463,4]
[345985305,1734601842746,-1626.52,0.00022463,4]
[345985306,1734601842755,-500.0,0.00022463,4]
[345985307,1734601842764,-500.0,0.00022463,4]
[345985308,1734601842773,-500.0,0.00022463,4]
[345985309,1734601842782,-500.0,0.00022463,4]
[345985310,1734601842791,-500.0,0.00022463,4]
[345985311,1734601842801,-500.0,0.00022463,4]
[345985312,1734601842810,-500.0,0.00022465,4]
[345985313,1734601842819,-500.0,0.00022465,4]
[345985314,1734601842829,-500.0,0.00022465,4]
[345985315,1734601842839,-500.0,0.00022465,4]
[345985316,1734601842847,-532.29,0.00022465,4]
[345985317,1734601842856,-772.39,0.00022465,4]
[345985318,1734601842865,-500.0,0.00022465,4]
[345985319,1734601842875,-500.0,0.00022465,4]
[345985320,1734601842884,-500.0,0.00022465,4]
[345985321,1734601842893,-402.86455995,0.00022465,4]
[345985322,1734601842902,-500.0,0.00022465,4]
[345985323,1734601842911,-589.66880296,0.00022465,4]
[345985324,1734601842921,-500.0,0.00022465,4]
[345985325,1734601842931,-500.0,0.00022465,4]
[345985327,1734601842940,-500.0,0.00022465,4]
[345985329,1734601842949,-500.0,0.00022465,4]
[345985330,1734601842959,-7500.0,0.00022477,2]
[345985332,1734601842968,-297.4,0.00022478,7]
[345985333,1734601842978,-297.4,0.00022478,7]
[345985334,1734601842987,-1000.0,0.00022478,2]
[345985336,1734601842996,-1000.0,0.00022478,2]
[345985338,1734601843005,-1000.0,0.00022478,2]
[345985340,1734601843015,-1000.0,0.00022478,2]
[345985342,1734601843024,-1000.0,0.00022478,2]
[345985344,1734601843033,-1000.0,0.00022478,2]
[345985345,1734601843043,-1000.0,0.00022478,2]
[345985346,1734601843052,-1000.0,0.00022478,2]
[345985347,1734601843062,-1000.0,0.00022478,2]
[345985348,1734601843071,-1000.0,0.00022478,2]
[345985349,1734601843080,-1000.0,0.00022478,2]
[345985350,1734601843088,-1000.0,0.00022478,2]
[345985351,1734601843098,-1000.0,0.00022478,2]
[345985352,1734601843107,-1000.0,0.00022478,2]
[345985353,1734601843116,-1000.0,0.00022478,2]
[345985354,1734601843125,-191.0,0.00022478,2]
[345985355,1734601843135,-1348.5313,0.00022478,2]
[345985356,1734601843145,-151.71,0.00022548,2]
[345985357,1734601843154,-150.96,0.00022548,2]
[345985358,1734601843163,-163.495186,0.00022555,2]
[345985359,1734601843173,-158.225607,0.00022555,2]
[345985360,1734601843182,-158.225607,0.00022555,2]
[345985361,1734601843191,-231.1,0.00022562,2]
[345985362,1734601843201,-310.70960865,0.00022567,2]
[345985363,1734601843210,-500.0,0.00022573,4]
[345985364,1734601843219,-500.0,0.00022573,4]
[345985365,1734601843228,-859.67,0.00022573,4]
[345985366,1734601843237,-500.0,0.00022573,4]
[345985367,1734601843247,-500.0,0.00022573,4]
[345985368,1734601843259,-500.0,0.00022573,4]
[345985369,1734601843268,-636.77,0.00022573,4]
[345985370,1734601843276,-500.0,0.00022573,4]
[345985371,1734601843285,-500.0,0.00022573,4]
[345985372,1734601843295,-500.0,0.00022573,4]
[345985373,1734601843303,-500.0,0.00022573,4]
[345985374,1734601843313,-1000.0,0.00022573,2]
[345985375,1734601843322,-1500.0,0.00022603,2]
[345985376,1734601843331,-297.4,0.00022679,7]
[345985377,1734601843340,-297.4,0.00022679,7]
[345985378,1734601843350,-180.19,0.00022732,2]
[345985379,1734601843359,-500.0,0.00022736,4]
[345985380,1734601843369,-600.0,0.00022736,2]
[345985381,1734601843378,-580.96,0.00022736,2]
[345985382,1734601843387,-500.0,0.00022736,4]
[345985383,1734601843396,-500.0,0.00022736,4]
[345985384,1734601843405,-483.75996264,0.00022736,4]
[345985385,1734601843414,-500.0,0.00022736,4]
[345985386,1734601843425,-500.0,0.00022736,4]
[345985387,1734601843434,-500.0,0.00022736,4]
[345985388,1734601843443,-500.0,0.00022736,4]
[345985389,1734601843451,-500.0,0.00022736,4]
[345985390,1734601843460,-500.0,0.00022736,4]
[345985391,1734601843469,-500.0,0.00022736,4]
[345985392,1734601843478,-500.0,0.00022736,4]
[345985393,1734601843487,-500.0,0.00022736,4]
[345985395,1734601843496,-500.0,0.00022736,4]
[345985396,1734601843505,-500.0,0.00022736,4]
[345985397,1734601843515,-500.0,0.00022736,4]
[345985398,1734601843524,-500.0,0.00022736,4]
[345985399,1734601843533,-500.0,0.00022736,4]
[345985400,1734601843542,-683.4,0.00022736,4]
[345985401,1734601843551,-500.0,0.00022736,4]
[345985402,1734601843560,-1242.62,0.00022736,4]
[345985404,1734601843570,-500.0,0.00022736,4]
[345985405,1734601843579,-511.27,0.00022736,4]
[345985406,1734601843588,-1626.52,0.00022736,4]
[345985407,1734601843597,-500.0,0.00022736,4]
[345985408,1734601843606,-500.0,0.00022736,4]
[345985409,1734601843615,-500.0,0.00022736,4]
[345985410,1734601843624,-500.0,0.00022736,4]
[345985411,1734601843633,-500.0,0.00022736,4]
[345985412,1734601843641,-500.0,0.00022736,4]
[345985413,1734601843650,-500.0,0.00022739,4]
[345985414,1734601843659,-500.0,0.00022739,4]
[345985415,1734601843667,-500.0,0.00022739,4]
[345985416,1734601843677,-500.0,0.00022739,4]
[345985417,1734601843686,-532.29,0.00022739,4]
[345985418,1734601843695,-772.39,0.00022739,4]
[345985419,1734601843704,-500.0,0.00022739,4]
[345985420,1734601843713,-500.0,0.00022739,4]
[345985421,1734601843722,-500.0,0.00022739,4]
[345985422,1734601843731,-500.0,0.00022739,4]
[345985423,1734601843740,-500.0,0.00022739,4]
[345985424,1734601843749,-500.0,0.00022739,4]
[345985425,1734601843758,-500.0,0.00022739,4]
[345985426,1734601843767,-406.91035715,0.00022739,4]
[345985427,1734601843776,-394.432,0.00022751,2]
[345985428,1734601843785,-3804.47014682,0.00022767,2]
[345985429,1734601843794,-5828.3601,0.00022779,2]
[345985430,1734601843803,-297.4,0.00022783,7]
[345985431,1734601843813,-297.4,0.00022783,7]
[345985432,1734601843822,-1000.0,0.00022792,2]
[345985433,1734601843832,-150.2,0.00022812,2]
[345985434,1734601843841,-286.93894689,0.00022812,2]
[345985435,1734601843851,-50295.0,0.00022822,2]
[345985436,1734601843860,-500.0,0.00022847,4]
[345985437,1734601843869,-500.0,0.00022847,4]
[345985438,1734601843878,-859.67,0.00022847,4]
[345985439,1734601843888,-500.0,0.00022847,4]
[345985440,1734601843897,-500.0,0.00022847,4]
[345985441,1734601843907,-500.0,0.00022847,4]
[345985442,1734601843916,-636.77,0.00022847,4]
[345985443,1734601843926,-500.0,0.00022847,4]
[345985444,1734601843935,-500.0,0.00022847,4]
[345985445,1734601843944,-500.0,0.00022847,4]
[345985446,1734601843954,-500.0,0.00022847,4]
[345985447,1734601843963,-1000.0,0.00022847,2]
[345985448,1734601843973,-500.0,0.00022878,2]
[345985449,1734601843982,-249.24115644,0.00022879,2]
[345985450,1734601843991,-494.62,0.00022879,2]
[345985451,1734601844000,-10000.0,0.00022879,2]
[345985452,1734601844009,-10000.0,0.00022879,2]
[345985453,1734601844018,-310.70960865,0.000229,2]
[345985454,1734601844027,-1000.0,0.00022906,2]
[345985455,1734601844036,-957.83461,0.0002292,2]
[345985456,1734601844045,-509.88,0.00023,2]
[345985457,1734601844054,-502.04,0.00023,2]
[345985458,1734601844064,-500.0,0.0002301,4]
[345985459,1734601844073,-600.0,0.0002301,2]
[345985460,1734601844083,-580.96,0.0002301,2]
[345985461,1734601844092,-500.0,0.0002301,4]
[345985462,1734601844101,-500.0,0.0002301,4]
[345985463,1734601844110,-500.0,0.0002301,4]
[345985464,1734601844119,-500.0,0.0002301,4]
[345985465,1734601844129,-458.33169378,0.0002301,4]
[345985466,1734601844138,-500.0,0.0002301,4]
[345985467,1734601844148,-500.0,0.0002301,4]
[345985468,1734601844157,-500.0,0.0002301,4]
[345985469,1734601844166,-500.0,0.0002301,4]
[345985470,1734601844176,-500.0,0.0002301,4]
[345985471,1734601844186,-500.0,0.0002301,4]
[345985472,1734601844195,-500.0,0.0002301,4]
[345985473,1734601844205,-500.0,0.0002301,4]
[345985474,1734601844214,-500.0,0.0002301,4]
[345985475,1734601844223,-500.0,0.0002301,4]
[345985476,1734601844232,-500.0,0.0002301,4]
[345985477,1734601844241,-683.4,0.0002301,4]
[345985478,1734601844252,-500.0,0.0002301,4]
[345985479,1734601844261,-1242.62,0.0002301,4]
[345985480,1734601844271,-500.0,0.0002301,4]
[345985481,1734601844279,-511.27,0.0002301,4]
[345985482,1734601844289,-1626.52,0.0002301,4]
[345985483,1734601844299,-500.0,0.0002301,4]
[345985484,1734601844308,-500.0,0.0002301,4]
[345985485,1734601844318,-500.0,0.0002301,4]
[345985486,1734601844328,-500.0,0.0002301,4]
[345985487,1734601844338,-500.0,0.0002301,4]
[345985488,1734601844347,-253.87549213,0.0002301,4]
[345985489,1734601844356,-500.0,0.00023013,4]
[345985490,1734601844365,-500.0,0.00023013,4]
[345985491,1734601844374,-500.0,0.00023013,4]
[345985492,1734601844384,-500.0,0.00023013,4]
[345985493,1734601844393,-532.29,0.00023013,4]
[345985494,1734601844402,-772.39,0.00023013,4]
[345985495,1734601844411,-500.0,0.00023013,4]
[345985496,1734601844421,-500.0,0.00023013,4]
[345985497,1734601844430,-500.0,0.00023013,4]
[345985498,1734601844439,-552.7071325,0.00023013,4]
[345985499,1734601844448,-500.0,0.00023013,4]
[345985500,1734601844458,-500.0,0.00023013,4]
[345985501,1734601844467,-500.0,0.00023013,4]
[345985502,1734601844476,-150.0,0.00023023,2]
[345985503,1734601844485,-769.63,0.00023096,2]
[345985504,1734601844495,-1077.01,0.00023111,2]
[345985505,1734601844504,-150.0,0.00023111,2]
[345985506,1734601844514,-150.2,0.00023112,2]
[345985507,1734601844524,-500.0,0.00023121,4]
[345985508,1734601844533,-500.0,0.00023121,4]
[345985509,1734601844541,-859.67,0.00023121,4]
[345985510,1734601844551,-500.0,0.00023121,4]
[345985511,1734601844560,-500.0,0.00023121,4]
[345985512,1734601844569,-500.0,0.00023121,4]
[345985513,1734601844578,-636.77,0.00023121,4]
[345985514,1734601844587,-500.0,0.00023121,4]
[345985515,1734601844596,-500.0,0.00023121,4]
[345985516,1734601844605,-500.0,0.00023121,4]
[345985517,1734601844614,-500.0,0.00023121,4]
[345985518,1734601844623,-1000.0,0.00023121,2]
[345985519,1734601844633,-3804.47014682,0.00023122,2]
[345985520,1734601844642,-1396.2,0.00023133,2]
[345985521,1734601844651,-150.0,0.00023154,2]
[345985522,1734601844661,-150.0,0.00023195,2]
[345985523,1734601844670,-210.12461968,0.00023198,2]
[345985524,1734601844682,-500.71344971,0.000232,2]
[345985525,1734601844691,-500.0,0.000232,2]
[345985526,1734601844701,-322.7929609,0.000232,2]
[345985527,1734601844710,-153.0,0.00023226,2]
[345985528,1734601844719,-153.0,0.0002323,2]
[345985529,1734601844728,-310.70960865,0.00023233,2]
[345985530,1734601844737,-150.0,0.00023235,2]
[345985531,1734601844747,-6318.26940211,0.00023244,2]
[345985532,1734601844756,-500.0,0.00023273,2]
[345985533,1734601844765,-500.0,0.00023284,4]
[345985534,1734601844774,-600.0,0.00023284,2]
[345985535,1734601844783,-580.96,0.00023284,2]
[345985536,1734601844792,-500.0,0.00023284,4]
[345985537,1734601844801,-500.0,0.00023284,4]
[345985538,1734601844811,-640.12622508,0.00023284,4]
[345985539,1734601844820,-500.0,0.00023284,4]
[345985540,1734601844829,-500.0,0.00023284,4]
[345985541,1734601844838,-500.0,0.00023284,4]
[345985542,1734601844847,-500.0,0.00023284,4]
[345985543,1734601844856,-500.0,0.00023284,4]
[345985544,1734601844866,-435.35878721,0.00023284,4]
[345985545,1734601844878,-500.0,0.00023284,4]
[345985546,1734601844888,-500.0,0.00023284,4]
[345985547,1734601844897,-500.0,0.00023284,4]
[345985548,1734601844906,-500.0,0.00023284,4]
[345985549,1734601844915,-500.0,0.00023284,4]
[345985550,1734601844926,-500.0,0.00023284,4]
[345985551,1734601844936,-683.4,0.00023284,4]
[345985552,1734601845087,-500.0,0.00023284,4]
[345985553,1734601845102,-1242.62,0.00023284,4]
[345985554,1734601845111,-500.0,0.00023284,4]
[345985555,1734601845122,-511.27,0.00023284,4]
[345985556,1734601845131,-1626.52,0.00023284,4]
[345985557,1734601845140,-500.0,0.00023284,4]
[345985558,1734601845150,-500.0,0.00023284,4]
[345985559,1734601845160,-500.0,0.00023284,4]
[345985560,1734601845169,-500.0,0.00023284,4]
[345985561,1734601845179,-500.0,0.00023284,4]
[345985562,1734601845189,-500.0,0.00023287,4]
[345985563,1734601845198,-500.0,0.00023287,4]
[345985564,1734601845208,-500.0,0.00023287,4]
[345985565,1734601845217,-500.0,0.00023287,4]
[345985566,1734601845227,-532.29,0.00023287,4]
[345985567,1734601845236,-772.39,0.00023287,4]
[345985568,1734601845247,-500.0,0.00023287,4]
[345985569,1734601845258,-500.0,0.00023287,4]
[345985570,1734601845268,-500.0,0.00023287,4]
[345985571,1734601845277,-500.0,0.00023287,4]
[345985572,1734601845287,-500.0,0.00023287,4]
[345985573,1734601845297,-500.0,0.00023287,4]
[345985574,1734601845306,-150.0,0.00023293,2]
[345985575,1734601845316,-150.0,0.00023296,2]
[345985576,1734601845326,-800.0,0.00023298,9]
[345985577,1734601845335,-800.0,0.00023298,9]
[345985578,1734601845344,-800.0,0.00023298,9]
[345985579,1734601845353,-800.0,0.00023298,9]
[345985580,1734601845362,-800.0,0.00023298,9]
[345985581,1734601845372,-800.0,0.00023298,9]
[345985582,1734601845381,-1000.0,0.00023322,2]
[345985583,1734601845391,-595.0,0.00023334,2]
[345985584,1734601845400,-500.58761632,0.00023336,2]
[345985585,1734601845410,-206.20970148,0.00023336,2]
[345985586,1734601845419,-516.13593459,0.00023336,2]
[345985587,1734601845429,-500.66979296,0.00023336,2]
[345985588,1734601845438,-268.87520461,0.00023337,4]
[345985589,1734601845447,-500.0,0.00023337,4]
[345985590,1734601845456,-500.0,0.00023337,2]
[345985591,1734601845465,-500.0,0.00023337,2]
[345985592,1734601845475,-173.15,0.00023338,4]
[345985593,1734601845484,-614.06090252,0.00023338,4]
[345985594,1734601845493,-500.0,0.00023338,2]
[345985595,1734601845503,-594.39149016,0.00023338,4]
[345985596,1734601845512,-513.51,0.00023338,2]
[345985597,1734601845521,-412.82915432,0.00023338,4]
[345985598,1734601845531,-399.28774611,0.00023338,4]
[345985599,1734601845541,-168.65980934,0.00023338,4]
[345985600,1734601845551,-530.11,0.00023338,4]
[345985601,1734601845560,-1100.0,0.00023356,2]
[345985602,1734601845569,-515.06830787,0.00023369,2]
[345985603,1734601845578,-974.79,0.0002337,2]
[345985604,1734601845587,-152.0,0.00023375,3]
[345985605,1734601845596,-500.0,0.00023395,4]
[345985606,1734601845606,-500.0,0.00023395,4]
[345985607,1734601845615,-859.67,0.00023395,4]
[345985608,1734601845624,-620.98166987,0.00023395,4]
[345985609,1734601845633,-484.61519648,0.00023395,4]
[345985610,1734601845642,-500.0,0.00023395,4]
[345985611,1734601845652,-636.77,0.00023395,4]
[345985612,1734601845661,-500.0,0.00023395,4]
[345985613,1734601845671,-500.0,0.00023395,4]
[345985614,1734601845682,-500.0,0.00023395,4]
[345985615,1734601845692,-500.0,0.00023395,4]
[345985616,1734601845702,-1000.0,0.00023395,2]
[345985617,1734601845711,-150.0,0.00023401,2]
[345985618,1734601845721,-150.0,0.00023414,2]
[345985619,1734601845731,-150.0,0.00023428,2]
[345985620,1734601845740,-150.0,0.00023433,2]
[345985621,1734601845749,-2950.8,0.0002344,5]
[345985622,1734601845759,-150.0,0.00023445,2]
[345985623,1734601845768,-500.0,0.0002345,2]
[345985625,1734601845778,-159.69455249,0.0002345,2]
[345985627,1734601845787,-300.4943524,0.0002345,2]
[345985629,1734601845797,-500.0,0.0002345,2]
[345985632,1734601845806,-150.0,0.00023455,2]
[345985633,1734601845815,-168.55,0.00023469,2]
[345985634,1734601845824,-529.3746223,0.0002347,2]
[345985636,1734601845834,-3804.47014682,0.00023478,2]
[345985637,1734601845843,-150.2,0.0002349,2]
[345985638,1734601845852,-174.02,0.0002349,2]
[345985639,1734601845862,-150.0,0.00023526,2]
[345985640,1734601845874,-150.0,0.00023535,2]
[345985641,1734601845886,-150.0,0.00023537,2]
[345985642,1734601845896,-9490.5022,0.00023551,2]
[345985643,1734601845905,-150.0,0.00023554,2]
[345985644,1734601845915,-7500.0,0.00023557,2]
[345985645,1734601845925,-407.25728592,0.00023558,4]
[345985646,1734601845934,-600.0,0.00023558,2]
[345985647,1734601845943,-580.96,0.00023558,2]
[345985648,1734601845953,-500.0,0.00023558,4]
[345985649,1734601845964,-500.0,0.00023558,4]
[345985650,1734601845973,-500.0,0.00023558,4]
[345985651,1734601845984,-500.0,0.00023558,4]
[345985652,1734601845994,-500.0,0.00023558,4]
[345985653,1734601846004,-500.0,0.00023558,4]
[345985655,1734601846014,-500.0,0.00023558,4]
[345985656,1734601846025,-500.0,0.00023558,4]
[345985657,1734601846035,-500.0,0.00023558,4]
[345985658,1734601846045,-500.0,0.00023558,4]